fUSD/lending_fUSD_20250530
["ID","MTS","AMOUNT","RATE_DAILY","PERIOD"]
[363078702,1748568655853,-1484.16,0.00022191,2]
[363078703,1748568655862,-420.0,0.00022191,2]
[363078704,1748568655871,-603.05,0.00022191,2]
[363078705,1748568655882,-1927.13,0.00022191,2]
[363078706,1748568655891,-420.0,0.00022191,2]
[363078707,1748568655900,-420.0,0.00022191,2]
[363078708,1748568655910,-1131.62,0.00022191,2]
[363078709,1748568655919,-1512.49,0.00022191,2]
[363078710,1748568655928,-482.82,0.00022191,2]
[363078711,1748568655938,-420.0,0.00022191,2]
[363078712,1748568655947,-480.37,0.00022191,2]
[363078713,1748568655956,-420.0,0.00022191,2]
[363078714,1748568655966,-420.0,0.00022191,2]
[363078715,1748568655975,-1286.59,0.00022191,2]
[363078716,1748568655985,-420.0,0.00022191,2]
[363078717,1748568655994,-1227.56,0.00022191,2]
[363078718,1748568656003,-1114.66,0.00022191,2]
[363078719,1748568656012,-420.0,0.00022191,2]
[363078720,1748568656022,-151.0,0.00022191,7]
[363078721,1748568656031,-420.0,0.00022191,2]
[363078722,1748568656041,-1347.36,0.00022191,2]
[363078723,1748568656052,-515.66,0.00022191,2]
[363078724,1748568656061,-420.0,0.00022191,2]
[363078725,1748568656070,-2472.24,0.00022191,2]
[363078726,1748568656079,-857.21,0.00022191,2]
[363078727,1748568656089,-581.25,0.00022191,2]
[363078728,1748568656098,-563.81,0.00022191,2]
[363078729,1748568656108,-621.83,0.00022191,2]
[363078730,1748568656117,-420.0,0.00022191,2]
[363078731,1748568656127,-420.0,0.00022191,2]
[363078732,1748568656136,-420.0,0.00022191,2]
[363078733,1748568656146,-1082.84,0.00022191,2]
[363078734,1748568656155,-420.0,0.00022191,2]
[363078735,1748568656165,-567.45,0.00022191,2]
[363078736,1748568656175,-1760.73,0.00022191,2]
[363078737,1748568656184,-420.0,0.00022191,2]
[363078738,1748568656193,-420.0,0.00022191,2]
[363078739,1748568656203,-420.0,0.00022191,2]
[363078740,1748568656215,-420.0,0.00022191,2]
[363078741,1748568656224,-537.4,0.00022191,2]
[363078742,1748568656234,-420.0,0.00022191,2]
[363078743,1748568656244,-428.55,0.00022191,2]
[363078744,1748568656254,-420.0,0.00022191,2]
[363078745,1748568656265,-420.0,0.00022191,2]
[363078746,1748568656275,-420.0,0.00022191,2]
[363078747,1748568656285,-783.09,0.00022191,2]
[363078748,1748568656294,-825.45,0.00022191,2]
[363078749,1748568656303,-420.0,0.00022191,2]
[363078750,1748568656313,-271.29092,0.00022191,7]
[363078751,1748568656323,-569.22,0.00022191,2]
[363078752,1748568656332,-542.5,0.00022191,2]
[363078753,1748568656342,-420.0,0.00022191,2]
[363078754,1748568656352,-151.0,0.00022191,7]
[363078755,1748568656362,-420.0,0.00022191,2]
[363078756,1748568656372,-244.22,0.00022191,2]
[363078757,1748568656381,-5.85834279,0.00022191,2]
[363078758,1748568656556,-414.14165721,0.00022191,2]
[363078759,1748568656566,-2279.72,0.00022191,2]
[363078760,1748568656576,-513.16,0.00022191,2]
[363078761,1748568656585,-420.0,0.00022191,2]
[363078762,1748568656595,-420.0,0.00022191,2]
[363078763,1748568656604,-420.0,0.00022191,2]
[363078764,1748568656614,-2751.01,0.00022191,2]
[363078765,1748568656623,-420.0,0.00022191,2]
[363078766,1748568656633,-420.0,0.00022191,2]
[363078767,1748568656642,-113.83116823,0.00022191,2]
[363078768,1748568656654,-1167.43883177,0.00022191,2]
[363078769,1748568656664,-420.0,0.00022191,2]
[363078770,1748568656673,-534.7,0.00022191,2]
[363078771,1748568656683,-446.31,0.00022191,2]
[363078772,1748568656692,-1845.39,0.00022191,2]
[363078773,1748568656701,-99.58624234,0.00022191,2]
[363078774,1748568656714,-320.41375766,0.00022191,2]
[363078775,1748568656723,-638.83,0.00022191,2]
[363078776,1748568656732,-420.0,0.00022191,2]
[363078777,1748568656741,-580.19,0.00022191,2]
[363078778,1748568656751,-420.0,0.00022191,2]
[363078779,1748568656761,-680.38,0.00022191,2]
[363078780,1748568656771,-480.72,0.00022191,2]
[363078781,1748568656780,-2911.32,0.00022191,2]
[363078782,1748568656790,-567.67,0.00022191,2]
[363078783,1748568656799,-671.01,0.00022191,2]
[363078784,1748568656809,-515.22,0.00022191,2]
[363078785,1748568656818,-428.9869979,0.00022191,2]
[363078786,1748568656828,-420.0,0.00022191,2]
[363078787,1748568656837,-590.19,0.00022191,2]
[363078788,1748568656845,-727.79,0.00022191,2]
[363078789,1748568656855,-420.0,0.00022191,2]
[363078790,1748568656865,-721.21,0.00022191,2]
[363078791,1748568656874,-420.0,0.00022191,2]
[363078792,1748568656883,-1739.48,0.00022191,2]
[363078793,1748568656893,-420.0,0.00022191,2]
[363078794,1748568656902,-420.0,0.00022191,2]
[363078795,1748568656911,-413.5528355,0.00022191,2]
[363078796,1748568656920,-777.58,0.00022191,2]
[363078797,1748568656931,-420.0,0.00022191,2]
[363078798,1748568656941,-531.34,0.00022191,2]
[363078799,1748568656951,-856.66,0.00022191,2]
[363078800,1748568656961,-151.0,0.00022191,7]
[363078801,1748568656972,-512.91,0.00022191,2]
[363078802,1748568656981,-420.0,0.00022191,2]
[363078803,1748568656991,-661.34,0.00022191,2]
[363078804,1748568657001,-1491.57,0.00022191,2]
[363078805,1748568657010,-594.17,0.00022191,2]
[363078806,1748568657019,-630.3,0.00022191,2]
[363078807,1748568657029,-2033.27,0.00022191,2]
[363078808,1748568657038,-420.0,0.00022191,2]
[363078809,1748568657047,-774.04,0.00022191,2]
[363078810,1748568657056,-1065.96,0.00022191,2]
[363078811,1748568657066,-963.53,0.00022191,2]
[363078812,1748568657075,-1334.16,0.00022191,2]
[363078813,1748568657084,-1247.69,0.00022191,2]
[363078814,1748568657093,-420.0,0.00022191,2]
[363078815,1748568657102,-1699.09,0.00022191,2]
[363078816,1748568657112,-1417.02,0.00022191,2]
[363078817,1748568657121,-420.0,0.00022191,2]
[363078818,1748568657131,-420.0,0.00022191,2]
[363078819,1748568657140,-530.13,0.00022191,2]
[363078820,1748568657149,-1246.02,0.00022191,2]
[363078821,1748568657158,-420.0,0.00022191,2]
[363078822,1748568657167,-531.0431648,0.00022191,2]
[363078823,1748568657178,-833.29,0.00022191,2]
[363078824,1748568657187,-420.0,0.00022191,2]
[363078825,1748568657197,-570.47,0.00022191,2]
[363078826,1748568657206,-420.0,0.00022191,2]
[363078827,1748568657216,-387.90911301,0.00022191,2]
[363078828,1748568657226,-420.0,0.00022191,2]
[363078829,1748568657235,-64.14268418,0.00022191,7]
[363078830,1748568657999,-700.0,0.000217,7]
[363078831,1748568658009,-784.1183,0.00021817,2]
[363078832,1748568658019,-282.15357308,0.00021917,2]
[363078833,1748568658028,-395.02073527,0.00021917,2]
[363078834,1748568658037,-86.85731582,0.00022191,7]
[363078835,1748568658047,-2170.84,0.00022191,2]
[363078836,1748568658056,-548.91,0.00022191,2]
[363078837,1748568658065,-420.0,0.00022191,2]
[363078838,1748568658075,-1381.44,0.00022191,2]
[363078839,1748568658085,-1229.04,0.00022191,2]
[363078840,1748568658095,-671.02,0.00022191,2]
[363078841,1748568658104,-420.0,0.00022191,2]
[363078842,1748568658113,-420.0,0.00022191,2]
[363078843,1748568658122,-151.0,0.00022191,7]
[363078844,1748568658131,-420.0,0.00022191,2]
[363078845,1748568658140,-1711.18,0.00022191,2]
[363078846,1748568658150,-420.0,0.00022191,2]
[363078847,1748568658159,-10273.95,0.00022191,2]
[363078848,1748568658169,-420.0,0.00022191,2]
[363078849,1748568658179,-497.93,0.00022191,2]
[363078850,1748568658188,-766.06,0.00022191,2]
[363078851,1748568658198,-1664.5,0.00022191,2]
[363078852,1748568658207,-987.89,0.00022191,2]
[363078853,1748568658218,-471.55,0.00022191,2]
[363078854,1748568658227,-1192.73,0.00022191,2]
[363078855,1748568658236,-1586.92,0.00022191,2]
[363078856,1748568658245,-448.13,0.00022191,2]
[363078857,1748568658254,-855.11,0.00022191,2]
[363078858,1748568658263,-369.35918464,0.00022191,2]
[363078859,1748568658276,-50.64081536,0.00022191,2]
[363078860,1748568658285,-575.72,0.00022191,2]
[363078861,1748568658294,-4566.43918467,0.00022191,2]
[363078862,1748568658306,-419.30081533,0.00022191,2]
[363078863,1748568658315,-420.0,0.00022191,2]
[363078864,1748568658325,-420.0,0.00022191,2]
[363078865,1748568658334,-576.21,0.00022191,2]
[363078866,1748568658345,-542.56,0.00022191,2]
[363078867,1748568658355,-602.19,0.00022191,2]
[363078868,1748568658365,-420.0,0.00022191,2]
[363078869,1748568658374,-483.24,0.00022191,2]
[363078870,1748568658384,-420.0,0.00022191,2]
[363078871,1748568658394,-2273.94,0.00022191,2]
[363078872,1748568658403,-511.06,0.00022191,2]
[363078873,1748568658413,-1183.39,0.00022191,2]
[363078874,1748568658422,-706.03,0.00022191,2]
[363078875,1748568658642,-420.0,0.00022191,2]
[363078876,1748568658652,-1103.84,0.00022191,2]
[363078877,1748568658661,-420.0,0.00022191,2]
[363078878,1748568658670,-2405.29,0.00022191,2]
[363078879,1748568658680,-766.65,0.00022191,2]
[363078880,1748568658689,-420.0,0.00022191,2]
[363078881,1748568658699,-573.46,0.00022191,2]
[363078882,1748568658708,-1642.13,0.00022191,2]
[363078883,1748568658718,-1673.55,0.00022191,2]
[363078884,1748568658728,-420.0,0.00022191,2]
[363078885,1748568658737,-420.0,0.00022191,2]
[363078886,1748568658747,-441.47,0.00022191,2]
[363078887,1748568658756,-4419.55,0.00022191,2]
[363078888,1748568658765,-603.7,0.00022191,2]
[363078889,1748568658774,-7001.05902085,0.00022191,2]
[363078890,1748568658787,-7225.19097915,0.00022191,2]
[363078891,1748568658796,-420.0,0.00022191,2]
[363078892,1748568658805,-586.95241222,0.00022191,2]
[363078893,1748568658816,-273.42758778,0.00022191,2]
[363078894,1748568658826,-439.54,0.00022191,2]
[363078895,1748568658835,-855.61791218,0.00022191,2]
[363078896,1748568658854,-686.13208782,0.00022191,2]
[363078897,1748568658863,-1362.57,0.00022191,2]
[363078898,1748568658873,-420.0,0.00022191,2]
[363078899,1748568658883,-420.0,0.00022191,2]
[363078900,1748568658892,-627.09,0.00022191,2]
[363078901,1748568658901,-657.73,0.00022191,2]
[363078902,1748568658910,-420.0,0.00022191,2]
[363078903,1748568658920,-683.48,0.00022191,2]
[363078904,1748568658930,-420.0,0.00022191,2]
[363078905,1748568658941,-1005.52,0.00022191,2]
[363078906,1748568658951,-2262.67,0.00022191,2]
[363078907,1748568658960,-1741.71,0.00022191,2]
[363078908,1748568658971,-938.43,0.00022191,2]
[363078909,1748568658980,-151.0,0.00022191,7]
[363078910,1748568658990,-420.0,0.00022191,2]
[363078911,1748568658999,-7557.78710179,0.00022191,2]
[363078913,1748568792688,-168.72376841,0.00019102,2]
[363078914,1748568795498,-170.97,0.00019102,2]
[363078915,1748568797403,-293.61688932,0.00019102,2]
[363078918,1748568875813,156.22,0.00013699,2]
[363078925,1748569065377,948.0,0.000173,5]
[363078933,1748569234947,-190.46718875,0.00019102,2]
[363078935,1748569237623,-70.43215352,0.00019102,2]
[363078936,1748569237647,-150.77745225,0.00019202,2]
[363078942,1748569325050,-49.22254775,0.00019202,2]
[363078943,1748569325073,-107.99159183,0.00019302,2]
[363078951,1748569435686,202000.0,0.00025,60]
[363078957,1748569505046,-172.9608848,0.00019558,2]
[363078962,1748569579934,-27.0391152,0.00019558,2]
[363078963,1748569579957,-133.13358803,0.00020004,2]
[363078964,1748569609883,-162.51,0.00019178,2]
[363078965,1748569609907,-7.74636295,0.00020004,2]
[363079083,1748569832518,-213.0,0.00019893,2]
[363079084,1748569832528,-200.0,0.00019948,2]
[363079085,1748569832538,-187.0,0.00020058,2]
[363079086,1748569832563,-13.0,0.00020058,2]
[363079087,1748569832574,-250.0,0.00020058,2]
[363079088,1748569832584,-167.68482797,0.00020112,2]
[363079089,1748569832593,-250.0,0.00020212,2]
[363079090,1748569832602,-424.46647203,0.00020226,2]
[363079091,1748569832631,-1898.83352797,0.00020226,2]
[363079092,1748569832642,-150.0,0.00020283,7]
[363079093,1748569832652,-300.0,0.00020299,2]
[363079096,1748569832662,-300.0,0.00020299,2]
[363079097,1748569832673,-1200.0,0.00020299,2]
[363079100,1748569832682,-5465.48228274,0.000203,2]
[363079308,1748569840424,-1700.27274453,0.000203,2]
[363079317,1748569840498,-589.61560709,0.000203,2]
[363079339,1748569840833,-0.00556786,0.000203,2]
[363079341,1748569840844,-629.23687052,0.000203,2]
[363079344,1748569840863,-953.44066699,0.000203,2]
[363079346,1748569840876,-296.84820857,0.000203,2]
[363079348,1748569840890,-1310.29847379,0.000203,2]
[363079351,1748569840901,-365.745,0.000203,2]
[363079353,1748569840912,-331.07,0.000203,2]
[363079646,1748569843843,-12257.98457791,0.000203,2]
[363079647,1748569843853,-811.95,0.0002034,2]
[363079648,1748569843863,-1423.83,0.00020343,2]
[363079650,1748569843873,-1000.0,0.00020348,2]
[363079652,1748569843884,-169.51,0.00020366,2]
[363079654,1748569843894,-251.01,0.00020747,2]
[363079656,1748569843903,-528.62,0.00020875,2]
[363079658,1748569843912,-528.62,0.00020881,2]
[363079660,1748569843923,-528.62,0.00020886,2]
[363079662,1748569843932,-528.62,0.00020892,2]
[363079664,1748569843941,-166.57,0.00020892,2]
[363079666,1748569843951,-528.62,0.00020897,2]
[363079668,1748569843964,-528.62,0.00020903,2]
[363079670,1748569843974,-528.62,0.00020908,2]
[363079671,1748569843983,-528.62,0.00020914,2]
[363079673,1748569843992,-528.62,0.00020919,2]
[363079675,1748569844001,-528.62,0.00020925,2]
[363079677,1748569844011,-528.62,0.0002093,2]
[363079679,1748569844020,-528.62,0.00020936,2]
[363079681,1748569844030,-528.62,0.00020941,2]
[363079683,1748569844040,-528.62,0.00020947,2]
[363079685,1748569844049,-220.58,0.0002095,2]
[363079687,1748569844059,-156.22,0.00020951,2]
[363079689,1748569844069,-528.62,0.00020952,2]
[363079691,1748569844079,-528.62,0.00020958,2]
[363079693,1748569844089,-528.62,0.00020963,2]
[363079695,1748569844098,-528.62,0.00020969,2]
[363079698,1748569844108,-528.62,0.00020974,2]
[363079701,1748569844118,-528.62,0.0002098,2]
[363079703,1748569844127,-182.9,0.00020986,2]
[363079705,1748569844137,-291.74160467,0.00021058,2]
[363079707,1748569844147,-151.0,0.00021165,2]
[363079709,1748569844157,-516.46734671,0.00021165,2]
[363079710,1748569844167,-1115.157653,0.00021165,2]
[363079712,1748569844176,-207.4,0.00021165,2]
[363079714,1748569844186,-894.21,0.00021366,2]
[363079715,1748569844195,-200.0,0.00021514,2]
[363079717,1748569844205,-401.85700902,0.00021723,2]
[363079718,1748569844217,-1000.0,0.00021747,2]
[363079719,1748569844226,-1000.0,0.00021747,2]
[363079720,1748569844236,-1000.0,0.00021747,2]
[363079721,1748569844245,-1000.0,0.00021747,2]
[363079722,1748569844255,-237.09129354,0.00021747,2]
[363079723,1748569844266,-762.90870646,0.00021747,2]
[363079724,1748569844276,-228.79801548,0.00021747,2]
[363079725,1748569844286,-771.20198452,0.00021747,2]
[363079726,1748569844296,-1000.0,0.00021747,2]
[363079728,1748569844305,-1000.0,0.00021747,2]
[363079730,1748569844314,-1000.0,0.00021747,2]
[363079731,1748569844323,-1000.0,0.00021747,2]
[363079733,1748569844332,-1000.0,0.00021747,2]
[363079735,1748569844342,-1000.0,0.00021747,2]
[363079737,1748569844351,-1000.0,0.00021747,2]
[363079739,1748569844359,-1000.0,0.00021747,2]
[363079740,1748569844368,-1000.0,0.00021747,2]
[363079742,1748569844377,-1009.38216176,0.00021747,2]
[363079744,1748569844387,-1008.33261631,0.00021747,2]
[363079746,1748569844396,-1116.49934284,0.00021747,2]
[363079747,1748569844405,-1087.22388343,0.00021747,2]
[363079748,1748569844414,-1073.66555513,0.00021747,2]
[363079749,1748569844423,-1017.32419374,0.00021747,2]
[363079750,1748569844432,-1134.49908619,0.00021747,2]
[363079751,1748569844442,-1024.11295247,0.00021747,2]
[363079752,1748569844451,-1066.25961078,0.00021747,2]
[363079753,1748569844462,-1104.3071777,0.00021747,2]
[363079754,1748569844471,-1136.1553423,0.00021747,2]
[363079755,1748569844482,-1063.81736433,0.00021747,2]
[363079756,1748569844491,-1825.16787661,0.00021747,2]
[363079757,1748569844500,-182.9,0.00021773,2]
[363079758,1748569844509,-465.2087,0.00021817,2]
[363079759,1748569844519,-1000.0,0.00021817,2]
[363079760,1748569844529,-4371.27394677,0.00021817,2]
[363079761,1748569844538,-198.91120226,0.00021817,2]
[363079762,1748569844547,-160.98248594,0.00021817,2]
[363079763,1748569844557,-179.41400106,0.00021817,2]
[363079764,1748569844567,-12385.66880474,0.00021817,2]
[363079765,1748569844576,-4371.27394674,0.00021878,2]
[363079766,1748569844585,-200.0,0.00021882,2]
[363079767,1748569844594,-250.0,0.00021882,2]
[363079768,1748569844603,-214.2613474,0.000219,2]
[363079769,1748569844613,-1697.82,0.00021907,2]
[363079770,1748569844622,-161.0,0.00021912,3]
[363079771,1748569844631,-161.0,0.00021913,3]
[363079772,1748569844640,-161.0,0.00021914,3]
[363079782,1748569844905,-161.0,0.00021915,3]
[363079783,1748569844915,-161.0,0.00021916,3]
[363079784,1748569844925,-196.4,0.00021916,2]
[363079785,1748569844936,-420.0,0.00021917,2]
[363079786,1748569844945,-421.17090952,0.00021917,2]
[363079787,1748569844955,-421.25558051,0.00021917,2]
[363079788,1748569844968,-421.26598683,0.00021917,2]
[363079789,1748569844977,-160.253664,0.00021917,2]
[363079790,1748569844987,-420.0,0.00021917,2]
[363079791,1748569844997,-504.52,0.00021917,2]
[363079792,1748569845006,-420.0,0.00021917,2]
[363079793,1748569845016,-462.61,0.00021917,2]
[363079794,1748569845025,-1593.096467,0.00021917,2]
[363079795,1748569845034,-1497.768435,0.00021917,2]
[363079796,1748569845044,-500.99,0.00021917,2]
[363079797,1748569845053,-500.0,0.00021917,2]
[363079798,1748569845063,-151.92488583,0.00021917,2]
[363079799,1748569845073,-421.25231504,0.00021917,2]
[363079800,1748569845083,-420.0,0.00021917,2]
[363079801,1748569845092,-1000.0,0.00021917,2]
[363079802,1748569845101,-420.0,0.00021917,2]
[363079803,1748569845110,-293.85119542,0.00021917,2]
[363079804,1748569845119,-420.0,0.00021917,2]
[363079805,1748569845128,-426.5870618,0.00021917,2]
[363079806,1748569845138,-420.0,0.00021917,2]
[363079807,1748569845147,-487.79,0.00021917,2]
[363079808,1748569845157,-420.0,0.00021917,2]
[363079809,1748569845167,-699.29,0.00021917,2]
[363079810,1748569845177,-420.0,0.00021917,2]
[363079811,1748569845186,-420.0,0.00021917,2]
[363079812,1748569845196,-420.0,0.00021917,2]
[363079813,1748569845205,-586.57,0.00021917,2]
[363079814,1748569845217,-420.0,0.00021917,2]
[363079815,1748569845226,-420.0,0.00021917,2]
[363079816,1748569845235,-420.0,0.00021917,2]
[363079817,1748569845244,-449.61,0.00021917,2]
[363079818,1748569845254,-764.55,0.00021917,2]
[363079819,1748569845263,-420.0,0.00021917,2]
[363079820,1748569845273,-420.0,0.00021917,2]
[363079821,1748569845283,-420.0,0.00021917,2]
[363079822,1748569845293,-420.0,0.00021917,2]
[363079823,1748569845302,-420.0,0.00021917,2]
[363079824,1748569845312,-420.0,0.00021917,2]
[363079825,1748569845321,-420.0,0.00021917,2]
[363079826,1748569845331,-420.0,0.00021917,2]
[363079827,1748569845340,-422.16724993,0.00021917,2]
[363079828,1748569845350,-420.0,0.00021917,2]
[363079829,1748569845359,-725.48,0.00021917,2]
[363079830,1748569845369,-420.0,0.00021917,2]
[363079831,1748569845378,-420.0,0.00021917,2]
[363079832,1748569845388,-424.79735324,0.00021917,2]
[363079833,1748569845398,-420.0,0.00021917,2]
[363079834,1748569845407,-368.64296204,0.00021917,2]
[363079835,1748569845418,-425.36315524,0.00021917,2]
[363079836,1748569845429,-420.0,0.00021917,2]
[363079837,1748569845439,-429.31204468,0.00021917,2]
[363079838,1748569845449,-420.0,0.00021917,2]
[363079839,1748569845459,-691.33,0.00021917,2]
[363079840,1748569845469,-420.0,0.00021917,2]
[363079841,1748569845478,-420.0,0.00021917,2]
[363079842,1748569845487,-424.29785727,0.00021917,2]
[363079843,1748569845496,-482.46,0.00021917,2]
[363079844,1748569845505,-486.66,0.00021917,2]
[363079845,1748569845515,-420.0,0.00021917,2]
[363079846,1748569845524,-473.75,0.00021917,2]
[363079847,1748569845533,-425.59217242,0.00021917,2]
[363079848,1748569845542,-420.0,0.00021917,2]
[363079849,1748569845551,-505.8,0.00021917,2]
[363079850,1748569845561,-424.73792697,0.00021917,2]
[363079851,1748569845570,-420.0,0.00021917,2]
[363079852,1748569845580,-420.0,0.00021917,2]
[363079853,1748569845589,-420.0,0.00021917,2]
[363079854,1748569845598,-488.66,0.00021917,2]
[363079855,1748569845607,-628.25,0.00021917,2]
[363079856,1748569845616,-420.0,0.00021917,2]
[363079857,1748569845625,-420.0,0.00021917,2]
[363079858,1748569845635,-533.24,0.00021917,2]
[363079859,1748569845644,-420.0,0.00021917,2]
[363079860,1748569845653,-420.0,0.00021917,2]
[363079861,1748569845662,-420.0,0.00021917,2]
[363079862,1748569845672,-420.0,0.00021917,2]
[363079863,1748569845681,-589.55,0.00021917,2]
[363079864,1748569845690,-535.59,0.00021917,2]
[363079865,1748569845699,-775.06,0.00021917,2]
[363079866,1748569845709,-460.61,0.00021917,2]
[363079867,1748569845719,-424.87258929,0.00021917,2]
[363079868,1748569845728,-420.0,0.00021917,2]
[363079869,1748569845737,-430.80487852,0.00021917,2]
[363079870,1748569845746,-452.83,0.00021917,2]
[363079871,1748569845755,-498.52,0.00021917,2]
[363079872,1748569845764,-420.0,0.00021917,2]
[363079873,1748569845775,-420.0,0.00021917,2]
[363079874,1748569845784,-698.36,0.00021917,2]
[363079875,1748569845793,-504.14,0.00021917,2]
[363079876,1748569845802,-420.0,0.00021917,2]
[363079877,1748569845812,-425.29794524,0.00021917,2]
[363079878,1748569845821,-431.08381182,0.00021917,2]
[363079879,1748569845830,-490.93,0.00021917,2]
[363079880,1748569845839,-420.0,0.00021917,2]
[363079881,1748569845849,-420.0,0.00021917,2]
[363079882,1748569845858,-635.09,0.00021917,2]
[363079883,1748569845867,-420.0,0.00021917,2]
[363079884,1748569845876,-1359.84,0.00021917,2]
[363079885,1748569845887,-420.0,0.00021917,2]
[363079886,1748569845896,-924.03,0.00021917,2]
[363079887,1748569845905,-420.0,0.00021917,2]
[363079888,1748569845914,-821.82,0.00021917,2]
[363079889,1748569845924,-420.0,0.00021917,2]
[363079890,1748569845933,-871.81,0.00021917,2]
[363079891,1748569845942,-420.0,0.00021917,2]
[363079892,1748569845951,-420.0,0.00021917,2]
[363079893,1748569845963,-397.88088586,0.00021917,2]
[363079894,1748569845972,-705.72,0.00021917,2]
[363079895,1748569845981,-504.01,0.00021917,2]
[363079896,1748569845990,-420.0,0.00021917,2]
[363079897,1748569845999,-1233.29,0.00021917,2]
[363079898,1748569846008,-420.0,0.00021917,2]
[363079899,1748569846018,-596.63,0.00021917,2]
[363079900,1748569846027,-537.34304647,0.00021917,2]
[363079901,1748569846036,-420.0,0.00021917,2]
[363079902,1748569846045,-1575.14,0.00021917,2]
[363079903,1748569846055,-420.0,0.00021917,2]
[363079904,1748569846064,-1013.16,0.00021917,2]
[363079905,1748569846074,-433.0,0.00021917,2]
[363079906,1748569846083,-547.47,0.00021917,2]
[363079907,1748569846092,-594.14,0.00021917,2]
[363079908,1748569846102,-425.63530878,0.00021917,2]
[363079909,1748569846111,-452.75,0.00021917,2]
[363079910,1748569846120,-420.0,0.00021917,2]
[363079911,1748569846129,-420.0,0.00021917,2]
[363079912,1748569846139,-972.36,0.00021917,2]
[363079913,1748569846148,-420.0,0.00021917,2]
[363079914,1748569846157,-498.11,0.00021917,2]
[363079915,1748569846166,-420.0,0.00021917,2]
[363079916,1748569846176,-1377.02,0.00021917,2]
[363079917,1748569846188,-1094.1,0.00021917,2]
[363079918,1748569846197,-464.19,0.00021917,2]
[363079919,1748569846206,-420.0,0.00021917,2]
[363079920,1748569846219,-420.0,0.00021917,2]
[363079921,1748569846228,-420.0,0.00021917,2]
[363079922,1748569846237,-626.04,0.00021917,2]
[363079923,1748569846247,-438.25,0.00021917,2]
[363079924,1748569846256,-420.0,0.00021917,2]
[363079925,1748569846266,-702.63,0.00021917,2]
[363079926,1748569846276,-598.35,0.00021917,2]
[363079927,1748569846285,-493.08579206,0.00021917,2]
[363079928,1748569846295,-443.71,0.00021917,2]
[363079929,1748569846305,-457.17,0.00021917,2]
[363079930,1748569846314,-420.0,0.00021917,2]
[363079931,1748569846324,-1177.92,0.00021917,2]
[363079932,1748569846334,-420.0,0.00021917,2]
[363079934,1748569846345,-497.56,0.00021917,2]
[363079936,1748569846356,-420.0,0.00021917,2]
[363079938,1748569846367,-1060.51,0.00021917,2]
[363079940,1748569846377,-1243.97,0.00021917,2]
[363079942,1748569846386,-420.0,0.00021917,2]
[363079944,1748569846394,-420.0,0.00021917,2]
[363079946,1748569846403,-420.0,0.00021917,2]
[363079948,1748569846414,-420.0,0.00021917,2]
[363079949,1748569846423,-1979.83,0.00021917,2]
[363079950,1748569846433,-539.09,0.00021917,2]
[363079951,1748569846443,-254.87968234,0.00021917,2]
[363079952,1748569846452,-420.0,0.00021917,2]
[363079953,1748569846467,-420.0,0.00021917,2]
[363079954,1748569846477,-420.0,0.00021917,2]
[363079955,1748569846486,-737.73,0.00021917,2]
[363079956,1748569846495,-420.0,0.00021917,2]